[Event "Queens Festival Final Team 2022"]
[Site "Tornelo"]
[Date "2022.06.26"]
[Round "2.6"]
[White "Medeiros, Thauane Ferreira"]
[Black "Bian, Erin"]
[Result "0-1"]
[ECO "D00"]
[WhiteElo "1884"]
[BlackElo "1811"]
[Annotator "NA RC"]
[PlyCount "108"]
[EventDate "2022.06.24"]
[EventType "team-tourn"]
[EventCountry "NET"]
[SourceTitle "playchess.com"]
[Source "ChessBase"]
[SourceQuality "1"]
[WhiteTeam "Brazil"]
[BlackTeam "United States"]
[WhiteTeamCountry "BRA"]
[BlackTeamCountry "USA"]
[TimeControl "180+2"]

1. d4 {[%emt 0:00:02]} Nf6 {[%emt 0:00:05]} 2. Bf4 {[%emt 0:00:04]} e6 {[%emt 0:00:01]} 3. e3 {[%emt 0:00:02]} c5 {[%emt 0:00:02]} 4. c3 {[%emt 0:00:01]} d5 {[%emt 0:00:01]} 5. Nd2 {[%emt 0:00:03]} Bd6 {[%emt 0:00:02]} 6. Bg3 {[%emt 0:00:03]} O-O {[%emt 0:00:04]} 7. Bd3 {[%emt 0:00:02]} b6 {[%emt 0:00:04]} 8. Qe2 {[%emt 0:00:04]} Bb7 {[%emt 0:00:10]} 9. Ngf3 {[%emt 0:00:01]} Nc6 {[%emt 0:00:10]} 10. Ne5 {[%emt 0:00:12]} Qc7 {[%emt 0:00:07]} 11. f4 {[%emt 0:00:03]} Ne7 {[%emt 0:00:02]} 12. Bh4 {[%emt 0:00:05]} Ne4 {[%emt 0:00:09]} 13. g4 {[%emt 0:00:22]} f6 {[%emt 0:00:09]} 14. Nef3 {[%emt 0:00:08]} f5 {[%emt 0:00:07]} 15. gxf5 {[%emt 0:00:51]} Nxf5 {[%emt 0:00:05]} 16. Bf2 {[%emt 0:00:20]} cxd4 {[%emt 0:00:12]} 17. exd4 {[%emt 0:00:04]} Bxf4 {[%emt 0:00:15]} 18. Nxe4 {[%emt 0:00:05]} dxe4 {[%emt 0:00:04]} 19. Bxe4 {[%emt 0:00:01]} Bxe4 {[%emt 0:00:05]} 20. Qxe4 {[%emt 0:00:00]} Rae8 {[%emt 0:00:11]} 21. Ne5 {[%emt 0:00:08]} Nd6 {[%emt 0:00:11]} 22. Qe2 {[%emt 0:00:07]} Nf7 {[%emt 0:00:07]} 23. Nd3 {[%emt 0:00:04]} Ng5 {[%emt 0:00:06]} 24. h4 {[%emt 0:00:23]} Nf3+ {[%emt 0:00:05]} 25. Kd1 {[%emt 0:00:11]} Bg3 {[%emt 0:00:17]} 26. Bxg3 {[%emt 0:00:06]} Qxg3 {[%emt 0:00:02]} 27. Kc2 {[%emt 0:00:04]} e5 {[%emt 0:00:18]} 28. d5 {[%emt 0:00:19]} e4 {[%emt 0:00:04]} 29. Nb4 {[%emt 0:00:01]} a5 {[%emt 0:00:07]} 30. Nc6 {[%emt 0:00:02]} Qd6 {[%emt 0:00:02]} 31. Raf1 {[%emt 0:00:04]} Qxd5 {[%emt 0:00:02]} 32. Nd4 {[%emt 0:00:01]} Nxd4+ {[%emt 0:00:02]} 33. cxd4 {[%emt 0:00:00]} Qxd4 {[%emt 0:00:02]} 34. Kb1 {[%emt 0:00:01]} Qd3+ {[%emt 0:00:04]} 35. Qxd3 {[%emt 0:00:02]} exd3 {[%emt 0:00:01]} 36. Rd1 {[%emt 0:00:01]} Rd8 {[%emt 0:00:03]} 37. a3 {[%emt 0:00:01]} Rf2 {[%emt 0:00:01]} 38. h5 {[%emt 0:00:01]} h6 {[%emt 0:00:03]} 39. Rhg1 {[%emt 0:00:02]} d2 {[%emt 0:00:02]} 40. Ka2 {[%emt 0:00:01]} Rd5 {[%emt 0:00:04]} 41. Rh1 {[%emt 0:00:03]} a4 {[%emt 0:00:03]} 42. Rhg1 {[%emt 0:00:01]} Rxh5 {[%emt 0:00:02]} 43. Rg6 {[%emt 0:00:01]} b5 {[%emt 0:00:05]} 44. Rd6 {[%emt 0:00:02]} Rhh2 {[%emt 0:00:07]} 45. Rd8+ {[%emt 0:00:02]} Kh7 {[%emt 0:00:01]} 46. Rd7 {[%emt 0:00:01]} Re2 {[%emt 0:00:02]} 47. Rg1 {[%emt 0:00:02]} Rhg2 {[%emt 0:00:05]} 48. Rd1 {[%emt 0:00:02]} h5 {[%emt 0:00:03]} 49. Rd5 {[%emt 0:00:02]} g6 {[%emt 0:00:02]} 50. Rd7+ {[%emt 0:00:02]} Kh6 {[%emt 0:00:01]} 51. Rd6 {[%emt 0:00:02]} h4 {[%emt 0:00:02]} 52. Kb1 {[%emt 0:00:02]} h3 {[%emt 0:00:05]} 53. Kc2 {[%emt 0:00:03]} h2 {[%emt 0:00:02]} 54. Rh1 {[%emt 0:00:06]} Rg1 {[%emt 0:00:03]} 0-1

[Event "Queens Festival Final Team 2022"]
[Site "Tornelo"]
[Date "2022.06.26"]
[Round "2.6"]
[White "Yellamraju, Aparna"]
[Black "Bucci, Andrea Vidigal"]
[Result "1-0"]
[ECO "D15"]
[WhiteElo "1720"]
[BlackElo "1769"]
[Annotator "NA RC"]
[PlyCount "119"]
[EventDate "2022.06.24"]
[EventType "team-tourn"]
[EventCountry "NET"]
[SourceTitle "playchess.com"]
[Source "ChessBase"]
[SourceQuality "1"]
[WhiteTeam "United States"]
[BlackTeam "Brazil"]
[WhiteTeamCountry "USA"]
[BlackTeamCountry "BRA"]
[TimeControl "180+2"]

1. d4 {[%emt 0:00:02]} d5 {[%emt 0:00:04]} 2. c4 {[%emt 0:00:02]} c6 {[%emt 0:00:01]} 3. Nf3 {[%emt 0:00:02]} Nf6 {[%emt 0:00:02]} 4. e3 {[%emt 0:00:03]} dxc4 {[%emt 0:00:03]} 5. Bxc4 {[%emt 0:00:02]} Bf5 {[%emt 0:00:01]} 6. O-O {[%emt 0:00:03]} e6 {[%emt 0:00:01]} 7. Nc3 {[%emt 0:00:04]} Nbd7 {[%emt 0:00:03]} 8. Bd3 {[%emt 0:00:03]} Bxd3 {[%emt 0:00:03]} 9. Qxd3 {[%emt 0:00:01]} Be7 {[%emt 0:00:01]} 10. b3 {[%emt 0:00:03]} O-O {[%emt 0:00:01]} 11. Bb2 {[%emt 0:00:02]} c5 {[%emt 0:00:06]} 12. dxc5 {[%emt 0:00:09]} Nxc5 {[%emt 0:00:05]} 13. Qe2 {[%emt 0:00:06]} Qc7 {[%emt 0:00:09]} 14. Rfd1 {[%emt 0:00:04]} Rad8 {[%emt 0:00:02]} 15. Rac1 {[%emt 0:00:03]} Qb8 {[%emt 0:00:09]} 16. h3 {[%emt 0:00:11]} Nce4 {[%emt 0:00:02]} 17. Nxe4 {[%emt 0:00:02]} Nxe4 {[%emt 0:00:03]} 18. Be5 {[%emt 0:00:03]} Bd6 {[%emt 0:00:17]} 19. Bxd6 {[%emt 0:00:02]} Rxd6 {[%emt 0:00:03]} 20. Rxd6 {[%emt 0:00:05]} Qxd6 {[%emt 0:00:01]} 21. Qc4 {[%emt 0:00:06]} Nf6 {[%emt 0:00:24]} 22. Qc7 {[%emt 0:00:03]} Qa6 {[%emt 0:00:09]} 23. Qc2 {[%emt 0:00:09]} Nd5 {[%emt 0:00:03]} 24. a4 {[%emt 0:00:20]} h6 {[%emt 0:00:12]} 25. Nd4 {[%emt 0:00:03]} Nb4 {[%emt 0:00:10]} 26. Qd2 {[%emt 0:00:07]} Qb6 {[%emt 0:00:11]} 27. Nb5 {[%emt 0:00:08]} Rd8 {[%emt 0:00:05]} 28. Qxb4 {[%emt 0:00:03]} a6 {[%emt 0:00:02]} 29. Qc5 {[%emt 0:00:20]} Rd1+ {[%emt 0:00:03]} 30. Kh2 {[%emt 0:00:07]} Qxc5 {[%emt 0:00:12]} 31. Rxc5 {[%emt 0:00:02]} axb5 {[%emt 0:00:03]} 32. Rxb5 {[%emt 0:00:01]} Rd7 {[%emt 0:00:07]} 33. Kg3 {[%emt 0:00:05]} Kf8 {[%emt 0:00:02]} 34. Kf4 {[%emt 0:00:03]} Ke7 {[%emt 0:00:03]} 35. Ke4 {[%emt 0:00:05]} Kd6 {[%emt 0:00:06]} 36. Rb4 {[%emt 0:00:06]} Kc5 {[%emt 0:00:07]} 37. Rc4+ {[%emt 0:00:04]} Kb6 {[%emt 0:00:03]} 38. f4 {[%emt 0:00:10]} Rd2 {[%emt 0:00:07]} 39. Kf3 {[%emt 0:00:10]} Rd3 {[%emt 0:00:16]} 40. b4 {[%emt 0:00:10]} Rd7 {[%emt 0:00:13]} 41. g4 {[%emt 0:00:05]} Ka6 {[%emt 0:00:03]} 42. h4 {[%emt 0:00:04]} b5 {[%emt 0:00:05]} 43. Rc6+ {[%emt 0:00:11]} Kb7 {[%emt 0:00:03]} 44. axb5 {[%emt 0:00:01]} Rd5 {[%emt 0:00:01]} 45. Rc5 {[%emt 0:00:02]} Rd3 {[%emt 0:00:07]} 46. Ke4 {[%emt 0:00:04]} Rb3 {[%emt 0:00:02]} 47. Rc4 {[%emt 0:00:04]} Kb6 {[%emt 0:00:01]} 48. h5 {[%emt 0:00:04]} Kxb5 {[%emt 0:00:03]} 49. Rc7 {[%emt 0:00:04]} Rxb4+ {[%emt 0:00:08]} 50. Kf3 {[%emt 0:00:02]} Rb1 {[%emt 0:00:07]} 51. Rxf7 {[%emt 0:00:02]} e5 {[%emt 0:00:01]} 52. Rxg7 {[%emt 0:00:04]} exf4 {[%emt 0:00:04]} 53. exf4 {[%emt 0:00:02]} Rb3+ {[%emt 0:00:02]} 54. Ke4 {[%emt 0:00:03]} Rb4+ {[%emt 0:00:01]} 55. Kf5 {[%emt 0:00:01]} Kc4 {[%emt 0:00:02]} 56. Rg6 {[%emt 0:00:03]} Rb5+ {[%emt 0:00:02]} 57. Ke4 {[%emt 0:00:01]} Rd5 {[%emt 0:00:03]} 58. Rc6+ {[%emt 0:00:05]} Rc5 {[%emt 0:00:02]} 59. Rxc5+ {[%emt 0:00:01]} Kxc5 {[%emt 0:00:00]} 60. Ke5 {[%emt 0:00:02]} 1-0

[Event "Queens Festival Final Team 2022"]
[Site "Tornelo"]
[Date "2022.06.26"]
[Round "3.1"]
[White "Alboredo, Julia"]
[Black "Subramanian, Anusha"]
[Result "1-0"]
[ECO "C01"]
[WhiteElo "2252"]
[BlackElo "1671"]
[Annotator "TA"]
[PlyCount "143"]
[EventDate "2022.06.24"]
[EventType "team-tourn"]
[EventCountry "NET"]
[SourceTitle "playchess.com"]
[Source "ChessBase"]
[SourceQuality "1"]
[WhiteTeam "Brazil"]
[BlackTeam "England"]
[WhiteTeamCountry "BRA"]
[BlackTeamCountry "ENG"]
[TimeControl "180+2"]

{[%evp 9,142,-10,1,-12,15,7,-3,0,39,-48,-1,-1,0,-5,22,24,28,8,22,-23,10,0,12,0,31,0,22,0,17,1,57,54,58,61,55,60,53,58,62,25,83,84,103,94,727,725,723,716,715,706,773,675,642,624,772,780,849,833,917,812,1094,1038,2457,1764,5693,5589,29973,29973,29986,29987,29987,1361,5304,2095,29954,29963,29964,29964,29980,29981,29981,29982,29978,29978,29977,29978,29976,29977,29986,29987,29986,29985,29985,29986,29986,29987,29987,29988,29989,29988,29988,29989,29989,29990,29990,29991,29992,29991,29991,29990,29990,29991,29991,29992,29993,29994,29995,29995,29995,29995,29995,29996,29997,29996,29996,29996,29996,29996,29996,29997,29997,29998,29998,29999,29999]} 1. e4 {[%emt 0:00:02]} e6 {[%emt 0:00:05]} 2. d4 {[%emt 0:00:02]} d5 {[%emt 0:00:02]} 3. Bd3 {[%emt 0:00:01][%cal Bf1d3,Bd3e4,Be4f3][%mdl 32]} dxe4 {[%emt 0:00:02]} 4. Bxe4 {[%emt 0:00:00]} Nf6 {[%emt 0:00:02]} 5. Bf3 {[%emt 0:00:01]} Bd6 {[%emt 0:00:08]} 6. Ne2 {[%emt 0:00:05] C01: French: Exchange Variation.} c6 {[%emt 0:00:01]} 7. O-O {[%emt 0:00:02]} O-O {[%emt 0:00:02]} 8. c4 {[%emt 0:00:04] The position is equal.} Qc7 {[%emt 0:00:11]} 9. g3 {[%emt 0:00:03]} (9. c5 $14 Be7 10. Bf4) 9... b6 {[%emt 0:00:03]} (9... e5 $15) 10. Nbc3 $11 {[%emt 0:00:12]} Bb7 {[%emt 0:00:01] [#]} 11. Qc2 $146 {[%emt 0:00:10]} ({Predecessor:} 11. Bg5 Nbd7 12. Rc1 h6 13. Bxf6 Nxf6 14. d5 Rad8 15. Qa4 Rc8 16. dxc6 Bxc6 17. Bxc6 Qxc6 18. Qxc6 Rxc6 19. b3 a6 {½-½ (19) Martin Vazquez,J (1832)-Lopez Orellana,F (1732) Madrid 2019}) 11... a6 {[%emt 0:00:03]} 12. Bf4 {[%emt 0:00:06]} Nbd7 {[%emt 0:00:10]} 13. Rfd1 {[%emt 0:00:08]} Rfd8 {[%emt 0:00:08]} 14. Bg5 {[%emt 0:00:10]} Be7 {[%emt 0:00:07]} (14... h6 $5 {[%cal Rh6g5]} 15. Bxf6 Nxf6 $11) 15. Rac1 {[%emt 0:00:08]} h6 {[%emt 0:00:03]} 16. Bf4 {[%emt 0:00:02]} Bd6 {[%emt 0:00:01]} 17. Ne4 {[%emt 0:00:07]} Nxe4 {[%emt 0:00:07]} 18. Bxe4 {[%emt 0:00:00]} Nf6 {[%emt 0:00:01]} 19. Bg2 {[%emt 0:00:02]} c5 {[%emt 0:00:22]} (19... Bxf4 $11 20. Nxf4 a5) 20. Bxb7 $14 {[%emt 0:00:07]} (20. Bxd6 {feels hotter.} Rxd6 21. Bxb7 Qxb7 22. dxc5 Rxd1+ 23. Rxd1 bxc5 24. Nc3) 20... Qxb7 {[%emt 0:00:03]} 21. Bxd6 {[%emt 0:00:03]} Rxd6 {[%emt 0:00:02]} 22. dxc5 {[%emt 0:00:00]} Rxd1+ {[%emt 0:00:04]} 23. Rxd1 {[%emt 0:00:03]} bxc5 {[%emt 0:00:01]} 24. b3 {[%emt 0:00:02]} a5 {[%emt 0:00:06]} (24... Ne4 $11 {remains equal.}) 25. Nc3 $16 {[%emt 0:00:05]} Nd7 {[%emt 0:00:12]} 26. Qe4 {[%emt 0:00:07]} Qa7 {[%emt 0:00:17][%mdl 8192] [#] This costs Black the game.} (26... Qxe4 $16 27. Nxe4 Ra7) 27. Rxd7 $1 $18 {[%emt 0:00:04][%mdl 512]} Qxd7 {[%emt 0:00:08]} 28. Qxa8+ {[%emt 0:00:02]} Kh7 {[%emt 0:00:01]} 29. Qe4+ {[%emt 0:00:04]} f5 {[%emt 0:00:02]} 30. Qc2 {[%emt 0:00:07]} Qd4 {[%emt 0:00:05]} 31. Ne2 {[%emt 0:00:10]} Qf6 {[%emt 0:00:12]} 32. Qc3 {[%emt 0:00:07]} Qd8 {[%emt 0:00:01]} 33. Qe5 {[%emt 0:00:11]} Qd7 {[%emt 0:00:09]} 34. h4 {[%emt 0:00:03]} a4 {[%emt 0:00:03]} 35. Nf4 {[%emt 0:00:08]} axb3 {[%emt 0:00:10]} 36. axb3 {[%emt 0:00:02]} Qd1+ {[%emt 0:00:02]} 37. Kg2 {[%emt 0:00:03]} Qxb3 {[%emt 0:00:02]} 38. Qxe6 {[%emt 0:00:03]} Qc2 {[%emt 0:00:03]} 39. Qg6+ {[%emt 0:00:07]} Kh8 {[%emt 0:00:11]} 40. Nh5 {[%emt 0:00:07]} (40. Ne6 $142 Qe4+ 41. Kh2 Qe5 42. Qe8+ Kh7 43. Nf8+ Kg8 44. Qxe5 Kxf8 45. Qxc5+ Kf7 46. Qxf5+ Ke7 47. c5) 40... Qe4+ {[%emt 0:00:02]} 41. Kh2 {[%emt 0:00:02][%csl Gh5][%cal Rg6g7] [#]} Qe7 {[%emt 0:00:09]} 42. Qxf5 {[%emt 0:00:03] White mates.} Qd6 {[%emt 0:00:03]} 43. Nf4 {[%emt 0:00:03]} Kg8 {[%emt 0:00:14]} 44. Qd5+ {[%emt 0:00:03]} Qxd5 {[%emt 0:00:01]} 45. Nxd5 {[%emt 0:00:00] KN-K3P} Kf7 {[%emt 0:00:02]} 46. Kg2 {[%emt 0:00:00]} Ke6 {[%emt 0:00:01]} 47. Kf3 {[%emt 0:00:00]} Ke5 {[%emt 0:00:02]} 48. Ke3 {[%emt 0:00:02]} g5 {[%emt 0:00:02]} 49. hxg5 {[%emt 0:00:00]} hxg5 {[%emt 0:00:00]} 50. f4+ {[%emt 0:00:01]} gxf4+ {[%emt 0:00:02]} 51. gxf4+ {[%emt 0:00:00] KN-KP} Kf5 {[%emt 0:00:01]} 52. Kf3 {[%emt 0:00:00]} Ke6 {[%emt 0:00:03]} 53. Ke4 {[%emt 0:00:01]} Kd6 {[%emt 0:00:04]} 54. Kf5 {[%emt 0:00:01]} Kd7 {[%emt 0:00:04]} 55. Kf6 {[%emt 0:00:05]} Kd6 {[%emt 0:00:02]} 56. f5 {[%emt 0:00:05]} Kd7 {[%emt 0:00:02]} 57. Ke5 {[%emt 0:00:01]} Ke8 {[%emt 0:00:02]} 58. Kd6 {[%emt 0:00:01]} Kf7 {[%emt 0:00:02]} 59. Kxc5 {[%emt 0:00:02]} Ke8 {[%emt 0:00:02]} 60. Kd6 {[%emt 0:00:01]} Kf7 {[%emt 0:00:01]} 61. c5 {[%emt 0:00:01]} Ke8 {[%emt 0:00:01]} 62. c6 {[%emt 0:00:01]} Kd8 {[%emt 0:00:02]} 63. c7+ {[%emt 0:00:02]} Kc8 {[%emt 0:00:00]} 64. Ne7+ {[%emt 0:00:03]} Kb7 {[%emt 0:00:02]} 65. c8=Q+ {[%emt 0:00:01]} Kb6 {[%emt 0:00:02]} 66. Qc7+ {[%emt 0:00:01]} Kb5 {[%emt 0:00:01]} 67. Qc5+ {[%emt 0:00:03]} Ka4 {[%emt 0:00:01]} 68. Qb6 {[%emt 0:00:01]} Ka3 {[%emt 0:00:02]} 69. Kc5 {[%emt 0:00:01]} Ka2 {[%emt 0:00:02]} 70. Kc4 {[%emt 0:00:01]} Ka1 {[%emt 0:00:01]} 71. Kc3 {[%emt 0:00:01][%csl Gc3][%cal Rb6b2]} Ka2 {[%emt 0:00:02]} 72. Qb2# {[%emt 0:00:01] Weighted Error Value: White=0.21 (precise) /Black=0.26 (precise)} 1-0

[Event "Queens Festival Final Team 2022"]
[Site "Tornelo"]
[Date "2022.06.26"]
[Round "3.1"]
[White "Grigoryan, Meri"]
[Black "Medeiros, Thauane Ferreira"]
[Result "0-1"]
[ECO "D02"]
[WhiteElo "1993"]
[BlackElo "1884"]
[Annotator "NA RC"]
[PlyCount "48"]
[EventDate "2022.06.24"]
[EventType "team-tourn"]
[EventCountry "NET"]
[SourceTitle "playchess.com"]
[Source "ChessBase"]
[SourceQuality "1"]
[WhiteTeam "England"]
[BlackTeam "Brazil"]
[WhiteTeamCountry "ENG"]
[BlackTeamCountry "BRA"]
[TimeControl "180+2"]

1. d4 {[%emt 0:00:06]} d5 {[%emt 0:00:06]} 2. Nf3 {[%emt 0:00:04]} Nf6 {[%emt 0:00:02]} 3. Bf4 {[%emt 0:00:02]} c5 {[%emt 0:00:02]} 4. c3 {[%emt 0:00:01]} Nc6 {[%emt 0:00:01]} 5. e3 {[%emt 0:00:07]} Qb6 {[%emt 0:00:02]} 6. Qc1 {[%emt 0:00:08]} Bf5 {[%emt 0:00:07]} 7. Nbd2 {[%emt 0:00:02]} e6 {[%emt 0:00:01]} 8. Ne5 {[%emt 0:00:06]} Nh5 {[%emt 0:00:11]} 9. Nxc6 {[%emt 0:00:03]} Nxf4 {[%emt 0:00:07]} 10. exf4 {[%emt 0:00:10]} bxc6 {[%emt 0:00:04]} 11. Nf3 {[%emt 0:00:09]} cxd4 {[%emt 0:00:09]} 12. cxd4 {[%emt 0:00:04]} Bb4+ {[%emt 0:00:02]} 13. Kd1 {[%emt 0:00:08]} O-O {[%emt 0:00:07]} 14. a3 {[%emt 0:00:03]} Be7 {[%emt 0:00:07]} 15. Qc3 {[%emt 0:00:22]} c5 {[%emt 0:00:14]} 16. Rc1 {[%emt 0:00:15]} c4 {[%emt 0:00:35]} 17. h3 {[%emt 0:00:10]} Rab8 {[%emt 0:00:12]} 18. g4 {[%emt 0:00:05]} Be4 {[%emt 0:00:03]} 19. Rg1 {[%emt 0:00:26]} Bxf3+ {[%emt 0:00:03]} 20. Qxf3 {[%emt 0:00:03]} Qxb2 {[%emt 0:00:03]} 21. f5 {[%emt 0:00:12]} Qxd4+ {[%emt 0:00:03]} 22. Ke1 {[%emt 0:00:09]} Rb3 {[%emt 0:00:05]} 23. Qe2 {[%emt 0:00:06]} Bxa3 {[%emt 0:00:07]} 24. Rd1 {[%emt 0:00:20]} Bb4+ {[%emt 0:00:02]} 0-1

[Event "Queens Festival Final Team 2022"]
[Site "Tornelo"]
[Date "2022.06.26"]
[Round "3.1"]
[White "Bucci, Andrea Vidigal"]
[Black "Posadas, Rayelynn"]
[Result "0-1"]
[ECO "B42"]
[WhiteElo "1769"]
[BlackElo "1648"]
[Annotator "NA RC"]
[PlyCount "108"]
[EventDate "2022.06.24"]
[EventType "team-tourn"]
[EventCountry "NET"]
[SourceTitle "playchess.com"]
[Source "ChessBase"]
[SourceQuality "1"]
[WhiteTeam "Brazil"]
[BlackTeam "England"]
[WhiteTeamCountry "BRA"]
[BlackTeamCountry "ENG"]
[TimeControl "180+2"]

1. e4 {[%emt 0:00:02]} c5 {[%emt 0:00:04]} 2. Nf3 {[%emt 0:00:02]} e6 {[%emt 0:00:03]} 3. d4 {[%emt 0:00:01]} cxd4 {[%emt 0:00:01]} 4. Nxd4 {[%emt 0:00:00]} a6 {[%emt 0:00:01]} 5. Be3 {[%emt 0:00:01]} Nf6 {[%emt 0:00:03]} 6. Bd3 {[%emt 0:00:03]} b5 {[%emt 0:00:04]} 7. O-O {[%emt 0:00:02]} Bb7 {[%emt 0:00:01]} 8. f3 {[%emt 0:00:01]} Bc5 {[%emt 0:00:02]} 9. Qe2 {[%emt 0:00:09]} Qb6 {[%emt 0:00:02]} 10. c3 {[%emt 0:00:12]} Nc6 {[%emt 0:00:07]} 11. Qf2 {[%emt 0:00:11]} O-O {[%emt 0:00:26]} 12. b4 {[%emt 0:00:10]} Bxd4 {[%emt 0:00:05]} 13. Bxd4 {[%emt 0:00:01]} Nxd4 {[%emt 0:00:01]} 14. Qxd4 {[%emt 0:00:02]} Qxd4+ {[%emt 0:00:04]} 15. cxd4 {[%emt 0:00:00]} Rac8 {[%emt 0:00:01]} 16. Nd2 {[%emt 0:00:03]} Rc3 {[%emt 0:00:04]} 17. Be2 {[%emt 0:00:15]} Rc2 {[%emt 0:00:01]} 18. Rfd1 {[%emt 0:00:02]} Rfc8 {[%emt 0:00:02]} 19. Kf2 {[%emt 0:00:20]} Rb2 {[%emt 0:00:02]} 20. Bd3 {[%emt 0:00:13]} Rxb4 {[%emt 0:00:05]} 21. Ke3 {[%emt 0:00:08]} d5 {[%emt 0:00:29]} 22. Rdc1 {[%emt 0:00:11]} Rd8 {[%emt 0:00:26]} 23. e5 {[%emt 0:00:07]} Nd7 {[%emt 0:00:07]} 24. Rc7 {[%emt 0:00:01]} Ba8 {[%emt 0:00:03]} 25. Ra7 {[%emt 0:00:12]} Nb6 {[%emt 0:00:14]} 26. Rxa6 {[%emt 0:00:10]} Nc4+ {[%emt 0:00:01]} 27. Nxc4 {[%emt 0:00:22]} dxc4 {[%emt 0:00:01]} 28. Be4 {[%emt 0:00:05]} Bxe4 {[%emt 0:00:05]} 29. fxe4 {[%emt 0:00:04]} c3 {[%emt 0:00:01]} 30. Rc1 {[%emt 0:00:06]} Rc4 {[%emt 0:00:02]} 31. d5 {[%emt 0:00:07]} exd5 {[%emt 0:00:07]} 32. exd5 {[%emt 0:00:01]} h6 {[%emt 0:00:01]} 33. Rd6 {[%emt 0:00:24]} Re8 {[%emt 0:00:06]} 34. e6 {[%emt 0:00:03]} b4 {[%emt 0:00:12]} 35. Kd3 {[%emt 0:00:03]} Rc7 {[%emt 0:00:11]} 36. Rf1 {[%emt 0:00:06]} fxe6 {[%emt 0:00:03]} 37. Rxe6 {[%emt 0:00:08]} Rxe6 {[%emt 0:00:13]} 38. dxe6 {[%emt 0:00:00]} Ra7 {[%emt 0:00:03]} 39. Rf2 {[%emt 0:00:02]} Re7 {[%emt 0:00:04]} 40. Re2 {[%emt 0:00:01]} Kf8 {[%emt 0:00:03]} 41. Kc4 {[%emt 0:00:01]} Rb7 {[%emt 0:00:01]} 42. Kb3 {[%emt 0:00:02]} Ke7 {[%emt 0:00:02]} 43. a3 {[%emt 0:00:03]} bxa3+ {[%emt 0:00:07]} 44. Kxc3 {[%emt 0:00:01]} Rb6 {[%emt 0:00:02]} 45. Ra2 {[%emt 0:00:02]} Rxe6 {[%emt 0:00:02]} 46. Kb3 {[%emt 0:00:01]} Kf6 {[%emt 0:00:04]} 47. Kxa3 {[%emt 0:00:04]} Ra6+ {[%emt 0:00:02]} 48. Kb3 {[%emt 0:00:01]} Rxa2 {[%emt 0:00:00]} 49. Kxa2 {[%emt 0:00:00]} Kf5 {[%emt 0:00:02]} 50. Kb2 {[%emt 0:00:00]} Ke4 {[%emt 0:00:03]} 51. Kc2 {[%emt 0:00:01]} Ke3 {[%emt 0:00:01]} 52. g4 {[%emt 0:00:03]} Kf3 {[%emt 0:00:01]} 53. h3 {[%emt 0:00:02]} Kg3 {[%emt 0:00:01]} 54. Kd3 {[%emt 0:00:02]} Kxh3 {[%emt 0:00:02]} 0-1

[Event "Queens Festival Final Team 2022"]
[Site "Tornelo"]
[Date "2022.06.26"]
[Round "3.1"]
[White "Catabay, Mae Katelyn Rose"]
[Black "Gomes, Maria Eduarda Papini"]
[Result "1-0"]
[ECO "B18"]
[WhiteElo "1321"]
[BlackElo "1618"]
[Annotator "NA RC"]
[PlyCount "111"]
[EventDate "2022.06.24"]
[EventType "team-tourn"]
[EventCountry "NET"]
[SourceTitle "playchess.com"]
[Source "ChessBase"]
[SourceQuality "1"]
[WhiteTeam "England"]
[BlackTeam "Brazil"]
[WhiteTeamCountry "ENG"]
[BlackTeamCountry "BRA"]
[TimeControl "180+2"]

1. e4 {[%emt 0:00:02]} c6 {[%emt 0:00:05]} 2. d4 {[%emt 0:00:03]} d5 {[%emt 0:00:02]} 3. Nc3 {[%emt 0:00:01]} dxe4 {[%emt 0:00:01]} 4. Nxe4 {[%emt 0:00:02]} Bf5 {[%emt 0:00:01]} 5. Ng3 {[%emt 0:00:01]} Bg6 {[%emt 0:00:01]} 6. Nf3 {[%emt 0:00:02]} Nf6 {[%emt 0:00:03]} 7. Be3 {[%emt 0:00:02]} e6 {[%emt 0:00:04]} 8. Be2 {[%emt 0:00:02]} Bd6 {[%emt 0:00:05]} 9. O-O {[%emt 0:00:03]} O-O {[%emt 0:00:01]} 10. Rc1 {[%emt 0:00:10]} Ng4 {[%emt 0:00:10]} 11. Qd2 {[%emt 0:00:18]} Nxe3 {[%emt 0:00:03]} 12. Qxe3 {[%emt 0:00:03]} Nd7 {[%emt 0:00:03]} 13. c4 {[%emt 0:00:02]} c5 {[%emt 0:00:09]} 14. Rfd1 {[%emt 0:00:17]} cxd4 {[%emt 0:00:04]} 15. Qxd4 {[%emt 0:00:02]} Bxg3 {[%emt 0:00:21]} 16. Qxd7 {[%emt 0:00:07]} Bc7 {[%emt 0:00:16]} 17. Qxd8 {[%emt 0:00:03]} Raxd8 {[%emt 0:00:02]} 18. Nh4 {[%emt 0:00:04]} Be4 {[%emt 0:00:07]} 19. Bf3 {[%emt 0:00:26]} Bxf3 {[%emt 0:00:05]} 20. Nxf3 {[%emt 0:00:02]} f6 {[%emt 0:00:16]} 21. Nd4 {[%emt 0:00:03]} Rfe8 {[%emt 0:00:10]} 22. Nb5 {[%emt 0:00:04]} Bb6 {[%emt 0:00:05]} 23. b4 {[%emt 0:00:14]} a6 {[%emt 0:00:04]} 24. Nc3 {[%emt 0:00:06]} e5 {[%emt 0:00:03]} 25. c5 {[%emt 0:00:03]} Ba7 {[%emt 0:00:06]} 26. Nd5 {[%emt 0:00:02]} Kf7 {[%emt 0:00:07]} 27. Nc7 {[%emt 0:00:04]} Rxd1+ {[%emt 0:00:06]} 28. Rxd1 {[%emt 0:00:03]} Re7 {[%emt 0:00:02]} 29. Nd5 {[%emt 0:00:07]} Rd7 {[%emt 0:00:01]} 30. Ne3 {[%emt 0:00:02]} Rxd1+ {[%emt 0:00:03]} 31. Nxd1 {[%emt 0:00:02]} Ke6 {[%emt 0:00:01]} 32. Nc3 {[%emt 0:00:05]} b6 {[%emt 0:00:09]} 33. c6 {[%emt 0:00:11]} Kd6 {[%emt 0:00:06]} 34. b5 {[%emt 0:00:02]} axb5 {[%emt 0:00:02]} 35. Nxb5+ {[%emt 0:00:02]} Kxc6 {[%emt 0:00:03]} 36. Nxa7+ {[%emt 0:00:02]} Kc5 {[%emt 0:00:01]} 37. Kf1 {[%emt 0:00:06]} Kb4 {[%emt 0:00:02]} 38. Nc8 {[%emt 0:00:02]} b5 {[%emt 0:00:03]} 39. Nd6 {[%emt 0:00:02]} Ka4 {[%emt 0:00:03]} 40. Ke2 {[%emt 0:00:07]} b4 {[%emt 0:00:01]} 41. Kd3 {[%emt 0:00:05]} Ka3 {[%emt 0:00:02]} 42. Kc4 {[%emt 0:00:02]} Kxa2 {[%emt 0:00:01]} 43. Kxb4 {[%emt 0:00:01]} Kb2 {[%emt 0:00:02]} 44. Ne8 {[%emt 0:00:01]} Kc2 {[%emt 0:00:03]} 45. Nxg7 {[%emt 0:00:03]} Kd2 {[%emt 0:00:01]} 46. Nh5 {[%emt 0:00:04]} f5 {[%emt 0:00:02]} 47. Ng3 {[%emt 0:00:04]} f4 {[%emt 0:00:04]} 48. Ne4+ {[%emt 0:00:01]} Kd3 {[%emt 0:00:03]} 49. Nf6 {[%emt 0:00:06]} Ke2 {[%emt 0:00:03]} 50. Ng4 {[%emt 0:00:03]} e4 {[%emt 0:00:02]} 51. Kc4 {[%emt 0:00:07]} Kf1 {[%emt 0:00:11]} 52. Kd4 {[%emt 0:00:14]} Kxg2 {[%emt 0:00:09]} 53. Kxe4 {[%emt 0:00:03]} h5 {[%emt 0:00:03]} 54. Kxf4 {[%emt 0:00:02]} hxg4 {[%emt 0:00:02]} 55. Kxg4 {[%emt 0:00:01]} Kxf2 {[%emt 0:00:01]} 56. h4 {[%emt 0:00:03]} 1-0